bitfinex-derivatives/quotes_BTCF0:USTF0_20241110
["timestamp","ask_amount","ask_price","bid_price","bid_amount"]
[1731263379177,9.33e-05,80947.0,80942.0,0.061707]
[1731263380868,9.33e-05,80947.0,80933.0,0.16868]
[1731263381470,9.33e-05,80947.0,80940.0,0.00169756]
[1731263381781,9.33e-05,80947.0,80945.0,0.061704]
[1731263382469,9.33e-05,80947.0,80946.0,0.00169756]
[1731263383972,0.7314933,80947.0,80946.0,0.00169756]
[1731263384170,0.3608933,80947.0,80946.0,0.00169756]
[1731263385675,0.4225963,80947.0,80946.0,0.00169756]
[1731263385881,0.7931963,80947.0,80946.0,0.00169756]
[1731263386072,0.4225963,80947.0,80946.0,0.00169756]
[1731263386269,0.06172,80925.0,80907.0,0.5177]
[1731263386475,0.42421641,80925.0,80911.0,0.1507]
[1731263386676,0.36249641,80925.0,80923.0,0.061721]
[1731263389078,0.00169641,80925.0,80923.0,0.061721]
[1731263389380,0.00169641,80925.0,80923.0,0.20247356]
[1731263389571,0.00169641,80925.0,80923.0,0.061721]
[1731263391082,0.3608,80940.0,80924.0,0.67294426]
[1731263391381,0.3608,80940.0,80939.0,0.06171]
[1731263392370,0.3608,80940.0,80933.0,0.061714]
[1731263392685,0.3608,80943.0,80924.0,0.0001517]
[1731263392888,0.42252,80925.0,80924.0,0.0001517]
[1731263393580,0.3608,80925.0,80924.0,0.0001517]
[1731263396080,0.3608,80925.0,80924.0,0.04842823]
[1731263396384,0.3608,80925.0,80924.0,0.0001517]
[1731263396783,0.42252,80925.0,80924.0,0.0001517]
[1731263397081,0.36249675,80925.0,80924.0,0.0618727]
[1731263397782,0.00169675,80925.0,80924.0,0.0618727]
[1731263397977,0.36192001,80939.0,80924.0,0.0618727]
[1731263398183,0.3608,80939.0,80926.0,0.061719]
[1731263398381,0.3608,80939.0,80925.0,0.3608]
[1731263398577,0.3608,80939.0,80924.0,0.0618727]
[1731263398986,0.3608,80939.0,80937.0,0.061711]
[1731263399682,0.3608,80939.0,80938.0,0.06171]
[1731263400084,0.36076,80939.0,80938.0,0.06171]
[1731263400287,0.36076,80939.0,80938.0,0.06340839]
[1731263400584,0.3428841,80947.0,80946.0,0.061704]
[1731263401289,0.3608,80965.0,80956.0,0.061697]
[1731263401583,4.487e-05,80964.0,80961.0,0.3608]
[1731263401787,4.487e-05,80964.0,80962.0,0.061692]
[1731263402088,4.487e-05,80964.0,80956.0,0.061696]
[1731263402089,4.87e-06,80964.0,80956.0,0.061696]
[1731263402382,0.14075256,80961.0,80960.0,0.00169839]
[1731263402983,0.51131256,80961.0,80940.0,0.05006467]
[1731263403186,0.3608,80944.0,80932.0,0.00064]
[1731263403486,0.14075256,80940.0,80914.0,0.1368]
[1731263403677,0.14075256,80940.0,80926.0,0.061719]
[1731263403678,0.3608,80935.0,80926.0,0.061719]
[1731263403879,0.06810744,80934.0,80912.0,0.50155256]
[1731263404085,0.061716,80931.0,80919.0,0.061725]
[1731263404289,0.06172,80925.0,80912.0,0.06173]
[1731263404485,0.09196162,80925.0,80924.0,0.0492822]
[1731263404682,0.09196162,80925.0,80924.0,0.0001517]
[1731263404882,0.46268162,80925.0,80924.0,0.0001517]
[1731263405078,0.061735,80907.0,80897.0,0.061741]
[1731263405283,0.14075256,80928.0,80895.0,0.02657097]
[1731263405284,0.3608,80904.0,80902.0,0.061737]
[1731263405479,0.3608,80913.0,80895.0,0.16732353]
[1731263405681,0.3608,80913.0,80908.0,0.061733]
[1731263405886,0.3608,80913.0,80909.0,0.061732]
[1731263406079,0.3608,80913.0,80910.0,0.061732]
[1731263406080,0.00013115,80912.0,80910.0,0.061732]
[1731263406482,0.00013115,80912.0,80910.0,0.215812]
[1731263406696,0.00169685,80911.0,80910.0,0.215812]
[1731263406993,0.00169685,80911.0,80910.0,0.26587859]
[1731263407190,0.00165685,80911.0,80910.0,0.26587859]
[1731263407495,0.3608,80929.0,80928.0,0.061718]
[1731263407791,0.3608,80956.0,80955.0,0.061697]
[1731263407989,0.3608,80970.0,80955.0,0.3608]
[1731263408190,0.3608,80970.0,80963.0,0.061691]
[1731263408397,0.3608,80970.0,80968.0,0.061687]
[1731263408582,0.3608,80970.0,80961.0,0.061693]
[1731263408892,0.3608,80970.0,80959.0,0.00014612]
[1731263408893,0.3608,80970.0,80963.0,0.061691]
[1731263409095,0.3608,80970.0,80959.0,0.00014612]
[1731263409285,0.3608,80970.0,80968.0,0.061687]
[1731263409689,0.3608,80980.0,80966.0,0.061688]
[1731263409890,0.03788769,80979.0,80959.0,0.00014612]
[1731263410085,0.03788769,80978.0,80967.0,0.061688]
[1731263410285,0.06168,80979.0,80967.0,0.061688]
[1731263410994,0.3608,80971.0,80967.0,0.061688]
[1731263411890,0.3608,80971.0,80959.0,0.15418612]
[1731263411891,0.14075256,80968.0,80959.0,0.00014612]
[1731263412090,0.3608,80963.0,80959.0,0.00014612]
[1731263412289,0.14075256,80968.0,80959.0,0.00014612]
[1731263412496,0.3608,80963.0,80959.0,0.00014612]
[1731263413392,0.422492,80963.0,80959.0,0.00014612]
[1731263413694,0.3608,80972.0,80959.0,0.00014612]
[1731263413993,0.3608,80972.0,80967.0,0.061688]
[1731263414693,0.3608,80972.0,80959.0,0.00014612]
[1731263414894,0.061686,80970.0,80961.0,0.061693]
[1731263415284,0.061687,80969.0,80961.0,0.061693]
[1731263415594,0.061689,80966.0,80959.0,0.00014612]
[1731263415791,0.3608,80960.0,80959.0,0.00014612]
[1731263416089,0.3608,80971.0,80959.0,0.00014612]
[1731263416285,0.061688,80967.0,80959.0,0.00014612]
[1731263416486,0.061694,80960.0,80959.0,0.00014612]
[1731263417092,0.20244656,80960.0,80959.0,0.00014612]
[1731263417294,0.87300656,80960.0,80941.0,0.061708]
[1731263417495,0.87300656,80960.0,80933.0,0.061713]
[1731263417496,0.061711,80937.0,80933.0,0.061713]
[1731263417792,0.3608,80945.0,80940.0,0.061708]
[1731263418185,0.06185452,80944.0,80929.0,0.05192269]
[1731263418387,0.00014852,80944.0,80937.0,0.06171]
[1731263418692,0.00014852,80944.0,80939.0,0.061709]
[1731263418885,0.00014852,80944.0,80942.0,0.061707]
[1731263419496,0.06814197,80943.0,80942.0,0.061707]
[1731263420595,0.06828997,80944.0,80942.0,0.061707]
[1731263421191,0.03023701,80943.0,80942.0,0.061707]
[1731263421497,0.03023701,80943.0,80940.0,0.39983172]
[1731263421498,0.3608,80955.0,80940.0,0.39983172]
[1731263421704,0.3608,80955.0,80940.0,0.54683172]
[1731263421994,0.3608,80955.0,80949.0,0.061702]
[1731263422204,0.3608,80955.0,80940.0,0.54683172]
[1731263422392,0.061699,80953.0,80944.0,0.061705]
[1731263422587,0.14075256,80946.0,80940.0,0.03967172]
[1731263422805,0.061706,80944.0,80940.0,0.03903172]
[1731263423099,0.061706,80944.0,80932.0,0.3608]
[1731263423299,0.3608,80948.0,80932.0,0.3608]
[1731263423690,0.3608,80956.0,80955.0,0.061697]
[1731263423999,0.33625891,80956.0,80944.0,0.14704]
[1731263424201,0.061693,80961.0,80952.0,0.0617]
[1731263424503,0.3608,80963.0,80947.0,0.3608]
[1731263425198,0.3608,80963.0,80957.0,0.061695]
[1731263425394,0.3608,80963.0,80961.0,0.061692]
[1731263425597,0.00120001,80974.0,80973.0,0.061684]
[1731263425899,0.00185332,80987.0,80979.0,0.061679]
[1731263426289,0.061677,80983.0,80972.0,0.061684]
[1731263426600,0.061677,80983.0,80964.0,0.3608]
[1731263426801,0.00185332,80987.0,80964.0,0.3608]
[1731263426999,0.00185332,80987.0,80979.0,0.14075256]
[1731263427203,0.3608,80989.0,80978.0,0.3608]
[1731263427596,0.3608,80989.0,80987.0,0.061673]
[1731263427915,0.35206225,80989.0,80987.0,0.061673]
[1731263428198,0.35206225,80989.0,80984.0,0.14075256]
[1731263428199,0.00185287,81006.0,80988.0,0.3608]
[1731263428403,0.00185287,81006.0,80998.0,0.3608]
[1731263429294,0.3608,81004.0,81002.0,0.061661]
[1731263429499,0.00185287,81006.0,80998.0,0.03925218]
[1731263429696,0.00185287,81006.0,80995.0,0.3608]
[1731263429896,0.00185287,81006.0,81003.0,0.3608]
[1731263430297,0.00185287,81006.0,81003.0,0.42246]
[1731263430500,0.00185287,81006.0,81005.0,0.061659]
[1731263430907,0.00185287,81006.0,80995.0,0.3608]
[1731263431203,0.00185287,81006.0,81000.0,0.061663]
[1731263431399,0.00185287,81006.0,81001.0,0.061662]
[1731263431806,0.061654,81012.0,81002.0,0.061661]
[1731263432007,0.061654,81012.0,81003.0,0.061661]
[1731263432209,0.1273,81017.0,81002.0,0.3608]
[1731263432511,0.1273,81017.0,80995.0,0.422466]
[1731263432512,0.06166,81005.0,80995.0,0.422466]
[1731263432911,0.061654,81012.0,81000.0,0.061663]
[1731263433111,0.061654,81012.0,81002.0,0.3608]
[1731263433303,0.061654,81012.0,81003.0,0.06166]
[1731263433706,0.06808766,81011.0,81003.0,0.06166]
[1731263434214,0.06808766,81011.0,81010.0,0.3608]
[1731263434403,0.06808293,81011.0,81010.0,0.34412941]
[1731263434905,0.06808293,81011.0,81010.0,0.061655]
[1731263436308,0.06808293,81011.0,81010.0,0.10092275]
[1731263436723,0.03021299,81011.0,81010.0,0.10092275]
[1731263437305,0.03021299,81011.0,81010.0,0.03926775]
[1731263437509,0.03021299,81011.0,81010.0,0.061655]
[1731263439014,0.3608,81023.0,81010.0,0.061655]
[1731263439209,0.14075256,81022.0,81005.0,0.39950638]
[1731263439415,0.061653,81013.0,81005.0,0.46116538]
[1731263439711,0.14075256,81022.0,81010.0,0.061655]
[1731263439712,0.06165,81017.0,81010.0,0.061655]
[1731263439919,0.03786927,81016.0,81010.0,0.061655]
[1731263440107,0.14075256,81022.0,81005.0,0.39950638]
[1731263440108,0.061655,81011.0,81005.0,0.39950638]
[1731263440814,0.3608,81023.0,81014.0,0.061652]
[1731263441112,0.3608,81043.0,81021.0,0.3608]
[1731263441305,0.3608,81043.0,81015.0,0.14075256]
[1731263441306,0.061628,81047.0,81041.0,0.422431]
[1731263441505,0.3608,81043.0,81030.0,0.3608]
[1731263441712,0.14075256,81033.0,81030.0,0.3608]
[1731263442010,0.061639,81032.0,81030.0,0.3608]
[1731263442621,0.061639,81032.0,81015.0,0.13394]
[1731263442622,0.37024,81031.0,81015.0,0.00064]
[1731263442913,0.3608,81036.0,81018.0,0.061649]
[1731263442914,0.061645,81024.0,81018.0,0.061649]
[1731263443104,0.3608,81029.0,81018.0,0.061649]
[1731263443305,0.3608,81029.0,81014.0,0.3608]
[1731263443306,0.061648,81020.0,81014.0,0.3608]
[1731263443514,0.061648,81020.0,81014.0,0.40069921]
[1731263443913,0.061648,81020.0,81016.0,0.061651]
[1731263444104,0.14075256,81027.0,81014.0,0.40069921]
[1731263444105,0.061651,81016.0,81014.0,0.40069921]
[1731263444310,0.3608,81015.0,81014.0,0.03989921]
[1731263444509,0.061652,81014.0,81013.0,0.00185103]
[1731263444915,0.061652,81014.0,81013.0,0.04082915]
[1731263445107,0.3608,81022.0,81013.0,0.00185103]
[1731263445309,0.3608,81022.0,81013.0,0.06350303]
[1731263445310,0.061649,81019.0,81013.0,0.06350303]
[1731263445820,0.3608,81022.0,81013.0,0.00185103]
[1731263446023,0.061652,81015.0,81013.0,0.00185103]
[1731263446314,0.3608,81014.0,81013.0,0.00185103]
[1731263447113,0.73112,81014.0,81013.0,0.00185103]
[1731263447316,0.061664,80999.0,80991.0,0.0246918]
[1731263447530,1.09192,81014.0,80990.0,0.06167]
[1731263447531,0.3608,81002.0,80990.0,0.06167]
[1731263447822,0.061665,80998.0,80990.0,0.0863618]
[1731263448018,0.3608,81002.0,80990.0,0.06167]
[1731263448324,0.3608,80992.0,80984.0,0.04191509]
[1731263448518,0.061669,80993.0,80984.0,0.00185205]
[1731263449316,0.4888,81001.0,80984.0,0.00185205]
[1731263449517,0.061665,80998.0,80994.0,0.061668]
[1731263450314,0.061659,81005.0,80998.0,0.061664]
[1731263450508,0.061659,81005.0,80984.0,0.00185205]
[1731263450509,0.061658,81007.0,80997.0,0.3608]
[1731263450716,0.1301,81014.0,80997.0,0.3608]
[1731263450924,0.06167,80992.0,80989.0,0.3608]
[1731263451110,0.50155256,80998.0,80989.0,0.3608]
[1731263451419,0.64155256,80998.0,80984.0,0.04058651]
[1731263451623,0.061674,80985.0,80984.0,0.04058651]
[1731263452125,0.06167,80991.0,80984.0,0.04058651]
[1731263452420,0.061663,81001.0,80997.0,0.061665]
[1731263452619,0.50155256,81006.0,80990.0,0.3608]
[1731263452812,0.06166,81004.0,80993.0,0.3608]
[1731263453017,0.50267257,81006.0,80993.0,0.3608]
[1731263453215,0.03021886,81005.0,80990.0,0.06167]
[1731263453417,0.03021886,81004.0,80985.0,0.061674]
[1731263453613,0.061672,80988.0,80985.0,0.061674]
[1731263454017,0.3608,81000.0,80984.0,0.04058651]
[1731263454221,0.061667,80995.0,80990.0,0.3608]
[1731263454419,0.3608,81000.0,80990.0,0.3608]
[1731263454620,0.3608,81000.0,80988.0,0.061672]
[1731263454825,0.06167,80991.0,80988.0,0.061672]
[1731263455430,0.06167,80991.0,80984.0,0.04058651]
[1731263455431,0.06167,80991.0,80990.0,0.3608]
[1731263455619,0.06167,80991.0,80984.0,0.04058651]
[1731263455620,0.061674,80986.0,80984.0,0.04058651]
[1731263455925,0.061674,80986.0,80984.0,0.00185205]
[1731263455926,0.39102232,80985.0,80984.0,0.00185205]
[1731263456128,0.79934679,80985.0,80974.0,0.3608]
[1731263456315,0.20243056,80981.0,80974.0,0.3608]
[1731263456627,0.20885935,80981.0,80948.0,0.3608]
[1731263456929,0.061695,80958.0,80947.0,0.061703]
[1731263457122,0.09191732,80958.0,80947.0,0.061703]
[1731263457626,0.03022232,80958.0,80955.0,0.061697]
[1731263457927,0.00010994,80958.0,80956.0,0.061696]
[1731263458224,0.03033226,80958.0,80957.0,0.0415996]
[1731263458429,0.03033226,80958.0,80957.0,0.00202]
[1731263459216,0.00010994,80958.0,80957.0,0.36282]
[1731263459428,0.00010994,80958.0,80957.0,0.73338]
[1731263459623,0.00010994,80958.0,80957.0,0.87718]
[1731263459819,0.00010994,80958.0,80957.0,0.50662]
[1731263460627,0.00010994,80958.0,80957.0,0.36282]
[1731263460817,0.00010994,80958.0,80957.0,0.00202]
[1731263461625,0.00010994,80958.0,80957.0,0.424516]
[1731263462027,0.00010994,80958.0,80957.0,0.36282]
[1731263462225,0.00010994,80958.0,80957.0,0.00202]
[1731263462530,0.06180494,80958.0,80957.0,0.00202]
[1731263462916,0.00010994,80958.0,80957.0,0.00202]
[1731263464539,0.3608,80975.0,80971.0,0.061685]
[1731263464720,0.3608,80984.0,80967.0,0.3608]
[1731263464923,0.061637,80982.0,80977.0,0.06168]
[1731263465732,0.3608,80984.0,80982.0,0.061676]
[1731263465930,0.00112001,80994.0,80991.0,0.06167]
[1731263466130,0.061664,80999.0,80991.0,0.06167]
[1731263466430,0.14075256,81003.0,80991.0,0.06167]
[1731263467023,0.3608,81007.0,80991.0,0.06167]
[1731263467529,0.20241356,81003.0,80991.0,0.06167]
[1731263467718,0.14075256,81003.0,80991.0,0.06167]
[1731263467922,0.195556,81009.0,80991.0,0.06167]
[1731263468124,0.1339,81009.0,80991.0,0.06167]
[1731263468333,0.14075256,81011.0,80991.0,0.06167]
[1731263468526,0.061656,81009.0,80991.0,0.10032627]
[1731263468733,0.14075256,81003.0,80991.0,0.10032627]
[1731263468928,0.14075256,80994.0,80991.0,0.03865627]
[1731263469123,0.061669,80992.0,80974.0,0.3608]
[1731263469319,0.061669,80992.0,80983.0,0.061676]
[1731263469525,0.3608,81001.0,80974.0,0.3608]
[1731263469526,0.14075256,80985.0,80974.0,0.3608]
[1731263469728,0.061678,80981.0,80974.0,0.3608]
[1731263470024,0.50155256,80993.0,80978.0,0.061679]
[1731263470224,0.061674,80987.0,80978.0,0.061679]
[1731263470531,0.50155256,80993.0,80983.0,0.3608]
[1731263470734,0.17403962,80992.0,80984.0,0.061675]
[1731263470934,0.06810577,80991.0,80987.0,0.061673]
[1731263471121,0.061672,80988.0,80986.0,0.3608]
[1731263471328,0.061682,80975.0,80974.0,0.03914274]
[1731263471530,0.42890432,80975.0,80962.0,0.3608]
[1731263471728,0.14075256,80967.0,80962.0,0.3608]
[1731263471928,0.061691,80964.0,80962.0,0.3608]
[1731263472134,0.06810432,80963.0,80962.0,0.40095686]
[1731263472832,0.06810432,80963.0,80962.0,0.3608]
[1731263473024,0.061697,80955.0,80943.0,0.061706]
[1731263473224,0.20244956,80955.0,80943.0,0.061706]
[1731263473422,0.27056708,80955.0,80943.0,0.061706]
[1731263473731,0.23267269,80955.0,80951.0,0.04027156]
[1731263474433,0.23267269,80955.0,80943.0,0.3608]
[1731263474434,0.17097569,80955.0,80943.0,0.3608]
[1731263474635,0.061705,80945.0,80943.0,0.3608]
[1731263474837,0.34501984,80944.0,80915.0,0.00185363]
[1731263475131,0.061727,80916.0,80915.0,0.00185363]
[1731263475326,0.061732,80910.0,80900.0,0.1]
[1731263475531,0.3608,80905.0,80900.0,0.1]
[1731263475728,0.3608,80904.0,80900.0,0.1]
[1731263475930,5.478e-05,80903.0,80900.0,0.1]
[1731263476733,5.478e-05,80903.0,80901.0,0.061739]
[1731263476935,1.478e-05,80903.0,80900.0,0.1]
[1731263477440,0.36077478,80908.0,80900.0,0.1]
[1731263477735,0.422539,80901.0,80900.0,0.1]
[1731263478332,0.422499,80901.0,80900.0,0.1]
[1731263478527,0.79338054,80901.0,80900.0,0.1]
[1731263478727,0.79338054,80901.0,80881.0,0.00185441]
[1731263478728,0.06175,80886.0,80881.0,0.00185441]
[1731263478932,0.432673,80882.0,80881.0,0.00185441]
[1731263479130,0.14075256,80882.0,80874.0,0.00011079]
[1731263479341,0.3608,80875.0,80874.0,0.00011079]
[1731263479646,0.36084154,80875.0,80874.0,0.00011079]
[1731263479943,0.8725141,80875.0,80862.0,0.03942909]
[1731263480236,0.3608,80865.0,80860.0,0.0247019]
[1731263480442,0.36076,80865.0,80863.0,0.061767]
[1731263480644,0.36072,80865.0,80863.0,0.061767]
[1731263480834,0.36068,80865.0,80863.0,0.061767]
[1731263481237,0.36080154,80875.0,80874.0,0.061759]
[1731263481436,0.36076154,80875.0,80874.0,0.061759]
[1731263481631,0.36072154,80875.0,80874.0,0.061759]
[1731263481837,0.00120001,80884.0,80883.0,0.061752]
[1731263482134,0.00116001,80884.0,80883.0,0.422552]
[1731263482334,0.3608,80900.0,80891.0,0.061746]
[1731263482335,0.36076,80900.0,80891.0,0.061746]
[1731263482642,0.36076,80900.0,80883.0,0.061752]
[1731263482643,0.061742,80897.0,80883.0,0.061752]
[1731263482836,9.094e-05,80896.0,80884.0,0.3608]
[1731263483236,9.094e-05,80896.0,80889.0,0.061748]
[1731263483540,5.094e-05,80896.0,80895.0,0.061743]
[1731263483942,0.061744,80895.0,80891.0,0.3608]
[1731263484241,5.094e-05,80896.0,80891.0,0.3608]
[1731263484442,5.094e-05,80896.0,80894.0,0.061743]
[1731263486744,5.094e-05,80896.0,80891.0,0.3608]
[1731263487138,0.061745,80892.0,80891.0,0.3608]
[1731263487434,5.094e-05,80896.0,80891.0,0.3608]
[1731263487435,5.094e-05,80896.0,80893.0,0.061744]
[1731263487634,5.094e-05,80896.0,80891.0,0.3608]
[1731263487635,5.094e-05,80896.0,80895.0,0.061743]
[1731263488740,5.094e-05,80896.0,80895.0,0.432583]
[1731263488741,9.4e-07,80896.0,80895.0,0.432583]
[1731263488939,9.4e-07,80896.0,80895.0,0.200423]
[1731263489145,0.3608,80917.0,80910.0,0.061731]
[1731263489146,0.36076094,80917.0,80910.0,0.061731]
[1731263489343,0.36076094,80917.0,80912.0,0.06173]
[1731263489539,0.061723,80922.0,80913.0,0.061729]
[1731263489944,0.061723,80922.0,80908.0,0.3608]
[1731263490146,0.061723,80922.0,80914.0,0.061728]
[1731263490747,0.3608,80925.0,80912.0,0.04017154]
[1731263491048,0.061722,80923.0,80916.0,0.061727]
[1731263491845,0.3608,80925.0,80908.0,0.40086467]
[1731263492144,0.06171,80939.0,80918.0,0.3608]
[1731263492337,0.061712,80937.0,80929.0,0.061717]
[1731263492755,0.061712,80937.0,80930.0,0.061716]
[1731263493248,0.061712,80936.0,80932.0,0.061715]
[1731263493555,0.14075256,80945.0,80927.0,0.3608]
[1731263493753,0.061712,80936.0,80928.0,0.061718]
[1731263493953,0.061708,80942.0,80934.0,0.061713]
[1731263494147,0.061708,80942.0,80935.0,0.061712]
[1731263494546,0.061708,80942.0,80937.0,0.061711]
[1731263494751,0.061702,80950.0,80941.0,0.061708]
[1731263495055,0.13864,80951.0,80935.0,0.3608]
[1731263495347,0.061702,80950.0,80935.0,0.3608]
[1731263495548,0.14075256,80946.0,80935.0,0.3608]
[1731263495752,0.061718,80928.0,80925.0,0.04054757]
[1731263495955,0.3608,80944.0,80927.0,0.3608]
[1731263496146,0.14075256,80945.0,80936.0,0.3608]
[1731263496345,0.14075256,80937.0,80919.0,0.061725]
[1731263496658,0.06172,80926.0,80919.0,0.061725]
[1731263496951,0.061721,80924.0,80919.0,0.061725]
[1731263497257,0.14075256,80920.0,80916.0,0.00012672]
[1731263497454,0.061726,80917.0,80916.0,0.00012672]
[1731263497953,0.432446,80917.0,80916.0,0.00012672]
[1731263498155,0.0632353,80917.0,80916.0,0.00012672]
[1731263498365,0.4339553,80917.0,80916.0,0.00012672]
[1731263498655,0.0631953,80917.0,80916.0,0.00012672]
[1731263498843,0.4339153,80917.0,80916.0,0.00012672]
[1731263499352,0.4338753,80917.0,80916.0,0.00012672]
[1731263499850,0.0630753,80917.0,80916.0,0.00012672]
[1731263501154,0.0015493,80917.0,80916.0,0.00012672]
[1731263501345,0.0015493,80917.0,80916.0,0.06185372]
[1731263501549,0.0015493,80917.0,80916.0,0.00012672]
[1731263501946,0.0015093,80917.0,80916.0,0.00012672]
[1731263502252,0.3623093,80917.0,80916.0,0.00012672]
[1731263502452,0.7330693,80917.0,80916.0,7.2e-07]
[1731263502663,0.061735,80905.0,80901.0,0.04024638]
[1731263502954,0.20244756,80905.0,80901.0,0.04024638]
[1731263503156,0.20395686,80905.0,80894.0,0.061744]
[1731263503356,0.20391686,80905.0,80894.0,0.061744]
[1731263503556,0.20391686,80905.0,80891.0,0.3608]
[1731263503557,0.20401111,80905.0,80895.0,0.061743]
[1731263503752,0.20401111,80905.0,80891.0,0.3608]
[1731263504159,0.06321855,80905.0,80900.0,0.061739]
[1731263504553,0.06321855,80905.0,80893.0,0.061745]
[1731263504856,0.06317855,80905.0,80898.0,0.03990195]
[1731263505063,0.20393111,80905.0,80898.0,0.03990195]
[1731263505457,0.06317855,80905.0,80898.0,0.03990195]
[1731263505855,0.06453318,80905.0,80898.0,0.03990195]
[1731263506157,0.20528574,80905.0,80898.0,0.03990195]
[1731263506558,0.20528574,80905.0,80891.0,0.422546]
[1731263506755,0.20524574,80905.0,80891.0,0.422546]
[1731263506957,0.061741,80898.0,80891.0,0.3608]
[1731263507156,0.061741,80898.0,80875.0,0.42267358]
[1731263507157,0.061754,80881.0,80875.0,0.42267358]
[1731263507366,0.20250956,80877.0,80875.0,0.00011558]
[1731263507570,0.00014022,80876.0,80875.0,0.00011558]
[1731263507861,0.00304415,80876.0,80875.0,0.00011558]
[1731263508655,0.00300415,80876.0,80875.0,0.00011558]
[1731263509361,0.00296415,80876.0,80875.0,0.00011558]
[1731263510053,0.00292415,80876.0,80875.0,0.00011558]
[1731263510665,0.00288415,80876.0,80875.0,0.00011558]
[1731263511159,0.00284415,80876.0,80875.0,0.00011558]
[1731263511462,0.36364415,80876.0,80875.0,0.00011558]
[1731263511652,0.36360415,80876.0,80875.0,0.00011558]
[1731263512461,0.50328415,80876.0,80875.0,0.00011558]
[1731263512856,0.14248415,80876.0,80875.0,0.00011558]
[1731263513056,0.14244415,80876.0,80875.0,0.00011558]
[1731263513559,0.00268415,80876.0,80875.0,0.00011558]
[1731263514164,0.00264415,80876.0,80875.0,0.00011558]
[1731263514965,0.00260415,80876.0,80875.0,0.00011558]
[1731263515664,0.00256415,80876.0,80875.0,0.00011558]
[1731263516463,0.00252415,80876.0,80875.0,0.00011558]
[1731263516668,0.06428215,80876.0,80875.0,0.00011558]
[1731263518063,0.06424215,80876.0,80875.0,0.00011558]
[1731263518255,1.03424415,80876.0,80856.0,0.3608]
[1731263518454,1.03424415,80876.0,80833.0,0.13976]
[1731263518455,0.14075256,80866.0,80848.0,0.3608]
[1731263518659,0.14075256,80866.0,80857.0,0.061772]
[1731263518856,0.061766,80865.0,80857.0,0.061772]
[1731263519061,0.00248415,80862.0,80857.0,0.061772]
[1731263519276,0.00012193,80861.0,80855.0,0.3608]
[1731263519467,0.00012193,80861.0,80860.0,0.06177]
[1731263519655,8.193e-05,80861.0,80860.0,0.06177]
[1731263520061,0.00256608,80861.0,80860.0,0.06177]
[1731263520469,0.00252608,80861.0,80860.0,0.06177]
[1731263520770,0.00252608,80861.0,80860.0,0.06393269]
[1731263521971,0.00248608,80861.0,80860.0,0.06393269]
[1731263522668,0.00244608,80861.0,80860.0,0.06393269]
[1731263523263,0.00240608,80861.0,80860.0,0.06393269]
[1731263523467,0.00240608,80861.0,80860.0,0.10378582]
[1731263524068,0.00236608,80861.0,80860.0,0.10378582]
[1731263524469,0.50155256,80879.0,80877.0,0.061757]
[1731263524470,0.3608,80879.0,80877.0,0.061757]
[1731263524670,0.36076,80879.0,80878.0,0.00216269]
[1731263525273,0.36072,80879.0,80878.0,0.00216269]
[1731263526167,0.36068,80879.0,80878.0,0.00216269]
[1731263528266,0.14075256,80884.0,80883.0,0.061752]
[1731263528574,0.17868646,80884.0,80883.0,0.061752]
[1731263528876,0.3608,80887.0,80886.0,0.06175]
[1731263529074,0.3608,80903.0,80886.0,0.06175]
[1731263529277,0.00076,80894.0,80893.0,0.422545]
[1731263529570,0.03792811,80894.0,80893.0,0.422545]
[1731263529770,0.14075256,80904.0,80902.0,0.061738]
[1731263530170,0.36156,80911.0,80910.0,0.061732]
[1731263530372,0.3608,80911.0,80910.0,0.061732]
[1731263530772,0.44303217,80911.0,80910.0,0.061732]
[1731263530973,0.44303217,80911.0,80910.0,0.00216269]
[1731263531374,0.50476317,80911.0,80910.0,0.0016151]
[1731263531580,0.50476317,80911.0,80910.0,0.00120616]
[1731263531778,0.46045236,80911.0,80910.0,0.00120616]
[1731263532279,1.45038962,80911.0,80874.0,0.3608]
[1731263532465,0.50155256,80882.0,80881.0,0.03968652]
[1731263532670,0.17868446,80882.0,80880.0,0.061754]
[1731263532870,0.0379319,80881.0,80880.0,0.061754]
[1731263533886,0.0379319,80881.0,80877.0,0.03910837]
[1731263534177,0.0378919,80881.0,80875.0,0.03882442]
[1731263534378,0.0378919,80881.0,80873.0,0.00185462]
[1731263534379,0.14075256,80876.0,80873.0,0.00185462]
[1731263534585,0.14075256,80876.0,80874.0,0.061759]
[1731263535277,0.14075256,80876.0,80867.0,0.3608]
[1731263535484,0.14075256,80876.0,80874.0,0.061759]
[1731263535979,0.14075256,80876.0,80875.0,0.061758]
[1731263536282,0.04432694,80881.0,80874.0,0.3608]
[1731263536487,0.3608,80900.0,80878.0,0.3608]
[1731263536674,0.061734,80907.0,80900.0,0.061739]
[1731263536875,0.14075256,80901.0,80900.0,0.061739]
[1731263537480,0.14075256,80901.0,80894.0,0.3608]
[1731263537681,0.14075256,80896.0,80886.0,0.06175]
[1731263537885,0.061751,80886.0,80879.0,0.061755]
[1731263538179,0.061751,80886.0,80872.0,0.3608]
[1731263538180,0.20250756,80880.0,80874.0,0.061759]
[1731263538384,0.20250756,80880.0,80872.0,0.3608]
[1731263538385,0.061757,80877.0,80872.0,0.3608]
[1731263539083,0.73176,80876.0,80851.0,0.02473239]
[1731263539286,0.14075256,80852.0,80848.0,0.30049407]
[1731263539583,0.061778,80850.0,80848.0,0.30049407]
[1731263539785,0.14075256,80852.0,80844.0,0.04052707]
[1731263539786,0.09972625,80849.0,80844.0,0.04052707]
[1731263540082,0.09972625,80849.0,80839.0,0.3608]
[1731263540083,0.03794725,80848.0,80839.0,0.3608]
[1731263540287,0.14075256,80844.0,80839.0,0.3608]
[1731263540488,0.20253556,80844.0,80839.0,0.39980657]
[1731263540788,0.3608,80840.0,80826.0,0.3608]
[1731263540975,0.061787,80838.0,80826.0,0.3608]
[1731263541180,0.14075256,80827.0,80809.0,0.3608]
[1731263541484,0.03795322,80838.0,80801.0,0.2678]
[1731263541485,0.00012247,80839.0,80824.0,0.3608]
[1731263541784,0.00012247,80839.0,80838.0,0.061787]
[1731263543087,0.00012247,80839.0,80832.0,0.061791]
[1731263543286,0.14075256,80833.0,80832.0,0.061791]
[1731263543877,0.14075256,80833.0,80829.0,0.3608]
[1731263544288,0.14075256,80833.0,80831.0,0.00169956]